[Event "Charlotte Fall IM-C 2023"]
[Site "Charlotte"]
[Date "2023.11.20"]
[Round "7.2"]
[White "Nandhakumar, Vaseegaran"]
[Black "Fierro Baquero, Martha L."]
[Result "1/2-1/2"]
[ECO "A49"]
[WhiteElo "2177"]
[BlackElo "2306"]
[Annotator "RC"]
[PlyCount "93"]
[EventDate "2023.11.17"]
[EventType "tourn"]
[EventCountry "USA"]
[SourceTitle "playchess.com"]
[Source "ChessBase"]
[SourceQuality "1"]
[TimeControl "5400+30"]

1. Nf3 {[%emt 0:00:02]} g6 {[%emt 0:00:18]} 2. d4 {[%emt 0:00:05]} Bg7 {[%emt 0:00:19]} 3. b3 {[%emt 0:00:16]} c5 {[%emt 0:01:03]} 4. Bb2 {[%emt 0:00:24]} cxd4 {[%emt 0:00:05]} 5. Nxd4 {[%emt 0:00:25]} Nf6 {[%emt 0:00:04]} 6. g3 {[%emt 0:00:11]} O-O {[%emt 0:00:48]} 7. Bg2 {[%emt 0:00:04]} Nc6 {[%emt 0:00:03]} 8. O-O {[%emt 0:00:14]} Qa5 {[%emt 0:02:13]} 9. c4 {[%emt 0:01:29]} a6 {[%emt 0:00:09]} 10. Nc3 {[%emt 0:00:25]} Rb8 {[%emt 0:04:02]} 11. Nd5 {[%emt 0:13:45]} Nxd5 {[%emt 0:05:47]} 12. Nxc6 {[%emt 0:02:13]} bxc6 {[%emt 0:07:25]} 13. Bxg7 {[%emt 0:00:17]} Kxg7 {[%emt 0:04:19]} 14. cxd5 {[%emt 0:00:01]} cxd5 {[%emt 0:09:46]} 15. Qd4+ {[%emt 0:02:55]} f6 {[%emt 0:06:01]} 16. Bxd5 {[%emt 0:02:47]} Bb7 {[%emt 0:02:51]} 17. Rfd1 {[%emt 0:01:07]} Bxd5 {[%emt 0:11:56]} 18. Qxd5 {[%emt 0:00:29]} Qxd5 {[%emt 0:00:04]} 19. Rxd5 {[%emt 0:00:02]} Rb7 {[%emt 0:00:13]} 20. Rc1 {[%emt 0:00:13]} Kf7 {[%emt 0:01:48]} 21. Ra5 {[%emt 0:00:53]} Ra8 {[%emt 0:01:03]} 22. Rc4 {[%emt 0:01:56]} Rb5 {[%emt 0:02:52]} 23. Rca4 {[%emt 0:09:51]} Rxa5 {[%emt 0:00:11]} 24. Rxa5 {[%emt 0:00:02]} d6 {[%emt 0:00:05]} 25. Ra4 {[%emt 0:06:40]} Ke6 {[%emt 0:00:30]} 26. Rb4 {[%emt 0:00:47]} Rc8 {[%emt 0:03:16]} 27. Rb6 {[%emt 0:01:42]} a5 {[%emt 0:36:49]} 28. a4 {[%emt 0:00:58]} h5 {[%emt 0:00:00]} 29. Rb7 {[%emt 0:04:02]} g5 {[%emt 0:00:00]} 30. h3 {[%emt 0:10:00]} Rc2 {[%emt 0:00:00]} 31. e3 {[%emt 0:08:50]} Rb2 {[%emt 0:00:00]} 32. Rb5 {[%emt 0:07:54]} d5 {[%emt 0:00:00]} 33. Kg2 {[%emt 0:00:54]} g4 {[%emt 0:00:00]} 34. h4 {[%emt 0:00:54]} Ke5 {[%emt 0:00:00]} 35. Rxa5 {[%emt 0:00:39]} Rxb3 {[%emt 0:00:00]} 36. Ra7 {[%emt 0:00:08]} e6 {[%emt 0:00:00]} 37. Ra8 {[%emt 0:01:53]} Ra3 {[%emt 0:00:00]} 38. a5 {[%emt 0:00:05]} f5 {[%emt 0:00:00]} 39. a6 {[%emt 0:00:22]} Ke4 {[%emt 0:00:00]} 40. Rh8 {[%emt 0:01:02]} Rxa6 {[%emt 0:00:00]} 41. Rxh5 {[%emt 0:00:12]} e5 {[%emt 0:00:00]} 42. Rh8 {[%emt 0:00:24]} d4 {[%emt 0:00:00]} 43. exd4 {[%emt 0:00:18]} exd4 {[%emt 0:00:00]} 44. h5 {[%emt 0:06:39]} d3 {[%emt 0:04:42]} 45. h6 {[%emt 0:00:26]} d2 {[%emt 0:04:18]} 46. Rd8 {[%emt 0:00:35]} Rxh6 {[%emt 0:00:00]} 47. Rxd2 {[%emt 0:00:02]} 1/2-1/2

[Event "Charlotte Fall IM-C 2023"]
[Site "Charlotte"]
[Date "2023.11.20"]
[Round "7.3"]
[White "Song, Ethan"]
[Black "Wang, Isaac"]
[Result "1/2-1/2"]
[ECO "B82"]
[WhiteElo "2176"]
[BlackElo "2377"]
[Annotator "RC"]
[PlyCount "74"]
[EventDate "2023.11.17"]
[EventType "tourn"]
[EventCountry "USA"]
[SourceTitle "playchess.com"]
[Source "ChessBase"]
[SourceQuality "1"]
[TimeControl "5400+30"]

1. e4 {[%emt 0:00:04]} c5 {[%emt 0:01:10]} 2. Nf3 {[%emt 0:00:23]} e6 {[%emt 0:00:38]} 3. d4 {[%emt 0:01:42]} cxd4 {[%emt 0:00:18]} 4. Nxd4 {[%emt 0:00:20]} a6 {[%emt 0:00:04]} 5. Bd3 {[%emt 0:03:53]} Qc7 {[%emt 0:00:13]} 6. O-O {[%emt 0:01:02]} Nf6 {[%emt 0:00:33]} 7. Qe2 {[%emt 0:01:23]} d6 {[%emt 0:04:37]} 8. Nc3 {[%emt 0:03:37]} Be7 {[%emt 0:00:47]} 9. f4 {[%emt 0:02:35]} Nbd7 {[%emt 0:08:39]} 10. Kh1 {[%emt 0:02:03]} h5 {[%emt 0:10:18]} 11. Be3 {[%emt 0:06:30]} Nc5 {[%emt 0:07:19]} 12. Nb3 {[%emt 0:02:54]} Nxd3 {[%emt 0:07:39]} 13. cxd3 {[%emt 0:00:15]} b5 {[%emt 0:00:56]} 14. Rac1 {[%emt 0:03:15]} Qd8 {[%emt 0:02:08]} 15. f5 {[%emt 0:03:06]} Bb7 {[%emt 0:04:58]} 16. Bg5 {[%emt 0:04:47]} h4 {[%emt 0:06:22]} 17. fxe6 {[%emt 0:05:16]} fxe6 {[%emt 0:00:27]} 18. Nd4 {[%emt 0:02:20]} Qd7 {[%emt 0:03:03]} 19. Rf3 {[%emt 0:02:41]} Ng4 {[%emt 0:06:39]} 20. Bxe7 {[%emt 0:01:55]} Qxe7 {[%emt 0:00:24]} 21. h3 {[%emt 0:01:58]} Ne5 {[%emt 0:00:29]} 22. Rff1 {[%emt 0:02:36]} Rf8 {[%emt 0:06:25]} 23. Nf3 {[%emt 0:05:13]} Nxf3 {[%emt 0:03:15]} 24. Rxf3 {[%emt 0:00:10]} Kd7 {[%emt 0:04:25]} 25. Rxf8 {[%emt 0:04:39]} Rxf8 {[%emt 0:00:45]} 26. Qe3 {[%emt 0:00:24]} Ke8 {[%emt 0:04:05]} 27. Qb6 {[%emt 0:01:22]} Rf7 {[%emt 0:02:28]} 28. Qa7 {[%emt 0:02:29]} g6 {[%emt 0:03:14]} 29. Qd4 {[%emt 0:01:19]} e5 {[%emt 0:02:42]} 30. Qe3 {[%emt 0:00:31]} g5 {[%emt 0:03:05]} 31. Kh2 {[%emt 0:02:20]} Qf6 {[%emt 0:00:22]} 32. Ne2 {[%emt 0:02:18]} Kf8 {[%emt 0:01:04]} 33. Qb6 {[%emt 0:01:35]} Qe7 {[%emt 0:00:43]} 34. Qe3 {[%emt 0:00:48]} Qf6 {[%emt 0:00:16]} 35. Qb6 {[%emt 0:00:31]} Qe7 {[%emt 0:00:14]} 36. Qe3 {[%emt 0:00:07]} Qf6 {[%emt 0:00:03]} 37. Qb6 {[%emt 0:00:04]} Qe7 {[%emt 0:00:24]} 1/2-1/2

[Event "Charlotte Fall IM-C 2023"]
[Site "Charlotte"]
[Date "2023.11.20"]
[Round "7.4"]
[White "Bhagat Kush"]
[Black "Guo, Ethan"]
[Result "0-1"]
[ECO "D10"]
[WhiteElo "2209"]
[BlackElo "2026"]
[Annotator "RC"]
[PlyCount "112"]
[EventDate "2023.11.17"]
[EventType "tourn"]
[EventCountry "USA"]
[SourceTitle "playchess.com"]
[Source "ChessBase"]
[SourceQuality "1"]
[TimeControl "5400+30"]

1. d4 {[%emt 0:06:43]} d5 {[%emt 0:00:14]} 2. c4 {[%emt 0:00:24]} c6 {[%emt 0:00:04]} 3. Nc3 {[%emt 0:00:06]} Nf6 {[%emt 0:00:04]} 4. e3 {[%emt 0:00:15]} g6 {[%emt 0:02:27]} 5. b3 {[%emt 0:02:53]} Bg7 {[%emt 0:00:26]} 6. Bb2 {[%emt 0:00:11]} O-O {[%emt 0:00:13]} 7. Bd3 {[%emt 0:02:45]} dxc4 {[%emt 0:04:31]} 8. bxc4 {[%emt 0:08:02]} e5 {[%emt 0:02:20]} 9. Nge2 {[%emt 0:04:23]} exd4 {[%emt 0:09:21]} 10. exd4 {[%emt 0:02:27]} Nbd7 {[%emt 0:06:04]} 11. O-O {[%emt 0:02:39]} b6 {[%emt 0:03:29]} 12. Ng3 {[%emt 0:12:17]} Ba6 {[%emt 0:02:25]} 13. Qa4 {[%emt 0:09:55]} Bb7 {[%emt 0:01:30]} 14. h3 {[%emt 0:08:22]} Ne8 {[%emt 0:04:50]} 15. Rad1 {[%emt 0:08:02]} c5 {[%emt 0:15:04]} 16. d5 {[%emt 0:01:23]} Nd6 {[%emt 0:00:47]} 17. Qb3 {[%emt 0:05:35]} Ba6 {[%emt 0:01:38]} 18. Nce4 {[%emt 0:02:51]} Bxb2 {[%emt 0:03:45]} 19. Qxb2 {[%emt 0:00:16]} Nxe4 {[%emt 0:01:33]} 20. Nxe4 {[%emt 0:00:43]} f5 {[%emt 0:06:53]} 21. Ng3 {[%emt 0:07:57]} Qc7 {[%emt 0:02:14]} 22. Rfe1 {[%emt 0:04:13]} Rae8 {[%emt 0:03:11]} 23. Bxf5 {[%emt 0:06:30]} gxf5 {[%emt 0:03:03]} 24. Nh5 {[%emt 0:02:24]} Ne5 {[%emt 0:01:57]} 25. f4 {[%emt 0:00:58]} Nxc4 {[%emt 0:04:10]} 26. Qc3 {[%emt 0:00:39]} Rxe1+ {[%emt 0:01:53]} 27. Rxe1 {[%emt 0:00:01]} Qf7 {[%emt 0:00:09]} 28. g4 {[%emt 0:00:03]} fxg4 {[%emt 0:02:16]} 29. hxg4 {[%emt 0:00:04]} Bc8 {[%emt 0:06:12]} 30. Qxc4 {[%emt 0:00:01]} Bxg4 {[%emt 0:00:09]} 31. Ng3 {[%emt 0:00:14]} Qxf4 {[%emt 0:00:42]} 32. Qxf4 {[%emt 0:00:07]} Rxf4 {[%emt 0:00:03]} 33. Re7 {[%emt 0:01:37]} Rf7 {[%emt 0:01:58]} 34. Re5 {[%emt 0:01:56]} h5 {[%emt 0:01:53]} 35. a4 {[%emt 0:00:28]} Kf8 {[%emt 0:02:42]} 36. a5 {[%emt 0:00:29]} h4 {[%emt 0:01:27]} 37. Nf1 {[%emt 0:00:18]} Rf5 {[%emt 0:02:14]} 38. Re4 {[%emt 0:00:12]} Bf3 {[%emt 0:00:03]} 39. Rxh4 {[%emt 0:00:05]} Bxd5 {[%emt 0:00:16]} 40. Ne3 {[%emt 0:01:14]} Rg5+ {[%emt 0:00:13]} 41. Kf2 {[%emt 0:00:05]} Bf7 {[%emt 0:01:04]} 42. Rh8+ {[%emt 0:01:00]} Rg8 {[%emt 0:00:14]} 43. Rh4 {[%emt 0:00:39]} b5 {[%emt 0:00:13]} 44. Nf5 {[%emt 0:00:07]} Rg6 {[%emt 0:00:39]} 45. Ke3 {[%emt 0:00:50]} Ra6 {[%emt 0:00:56]} 46. Rh8+ {[%emt 0:00:23]} Bg8 {[%emt 0:00:11]} 47. Rh5 {[%emt 0:00:12]} Rxa5 {[%emt 0:00:16]} 48. Nd6 {[%emt 0:00:06]} b4 {[%emt 0:00:33]} 49. Nb7 {[%emt 0:01:20]} Ra3+ {[%emt 0:00:05]} 50. Kd2 {[%emt 0:00:25]} c4 {[%emt 0:00:44]} 51. Rb5 {[%emt 0:00:04]} c3+ {[%emt 0:00:26]} 52. Ke3 {[%emt 0:00:47]} b3 {[%emt 0:00:40]} 53. Nc5 {[%emt 0:00:26]} b2 {[%emt 0:00:37]} 54. Rb8+ {[%emt 0:00:04]} Kg7 {[%emt 0:00:07]} 55. Rb7+ {[%emt 0:00:03]} Kh8 {[%emt 0:00:17]} 56. Nd3 {[%emt 0:00:49]} Rb3 {[%emt 0:07:05]} 0-1

[Event "Charlotte Fall IM-C 2023"]
[Site "Charlotte"]
[Date "2023.11.20"]
[Round "7.5"]
[White "Martin Del Campo Cardenas, Roberto Abel"]
[Black "Lima, Darcy"]
[Result "1/2-1/2"]
[ECO "C42"]
[WhiteElo "2212"]
[BlackElo "2405"]
[Annotator "RC"]
[PlyCount "20"]
[EventDate "2023.11.17"]
[EventType "tourn"]
[EventCountry "USA"]
[SourceTitle "playchess.com"]
[Source "ChessBase"]
[SourceQuality "1"]
[TimeControl "5400+30"]

1. e4 {[%emt 0:01:03]} e5 {[%emt 0:00:06]} 2. Nf3 {[%emt 0:00:05]} Nf6 {[%emt 0:00:02]} 3. Nxe5 {[%emt 0:00:05]} d6 {[%emt 0:00:05]} 4. Nf3 {[%emt 0:00:03]} Nxe4 {[%emt 0:00:10]} 5. Qe2 {[%emt 0:00:05]} Qe7 {[%emt 0:00:07]} 6. d3 {[%emt 0:00:02]} Nf6 {[%emt 0:00:06]} 7. Bg5 {[%emt 0:00:03]} Nbd7 {[%emt 0:00:07]} 8. Nc3 {[%emt 0:00:03]} Qxe2+ {[%emt 0:00:21]} 9. Bxe2 {[%emt 0:00:04]} a6 {[%emt 0:00:08]} 10. Kd2 {[%emt 0:00:06]} h6 {[%emt 0:00:04]} 1/2-1/2

[Event "Charlotte Fall IM-C 2023"]
[Site "Charlotte"]
[Date "2023.11.21"]
[Round "8.1"]
[White "Vemparala, Nikash"]
[Black "Lima, Darcy"]
[Result "0-1"]
[ECO "B06"]
[WhiteElo "2257"]
[BlackElo "2405"]
[Annotator "RC"]
[PlyCount "132"]
[EventDate "2023.11.17"]
[EventType "tourn"]
[EventCountry "USA"]
[SourceTitle "playchess.com"]
[Source "ChessBase"]
[SourceQuality "1"]
[TimeControl "5400+30"]

1. e4 {[%emt 0:01:09]} g6 {[%emt 0:01:06]} 2. d4 {[%emt 0:00:27]} d6 {[%emt 0:00:21]} 3. Nf3 {[%emt 0:00:17]} Bg7 {[%emt 0:00:25]} 4. c3 {[%emt 0:00:25]} a6 {[%emt 0:00:16]} 5. Bc4 {[%emt 0:04:34]} e6 {[%emt 0:00:32]} 6. O-O {[%emt 0:03:41]} Ne7 {[%emt 0:00:32]} 7. Bb3 {[%emt 0:01:31]} Nd7 {[%emt 0:01:36]} 8. Re1 {[%emt 0:01:48]} O-O {[%emt 0:02:09]} 9. Nbd2 {[%emt 0:02:35]} b5 {[%emt 0:03:03]} 10. Nf1 {[%emt 0:06:25]} Bb7 {[%emt 0:05:05]} 11. Bf4 {[%emt 0:02:47]} e5 {[%emt 0:02:22]} 12. Bg3 {[%emt 0:02:55]} c5 {[%emt 0:01:00]} 13. dxe5 {[%emt 0:02:08]} dxe5 {[%emt 0:02:41]} 14. Qd6 {[%emt 0:02:20]} Nc8 {[%emt 0:00:30]} 15. Qd2 {[%emt 0:00:33]} c4 {[%emt 0:04:56]} 16. Bc2 {[%emt 1:04:55]} Ncb6 {[%emt 0:00:23]} 17. Rad1 {[%emt 0:00:00]} Re8 {[%emt 0:07:11]} 18. Ne3 {[%emt 0:00:00]} Nc5 {[%emt 0:07:09]} 19. Qxd8 {[%emt 0:00:00]} Raxd8 {[%emt 0:00:42]} 20. Rxd8 {[%emt 0:00:00]} Rxd8 {[%emt 0:00:12]} 21. Bxe5 {[%emt 0:00:00]} Bxe5 {[%emt 0:01:57]} 22. Nxe5 {[%emt 0:00:00]} Bxe4 {[%emt 0:05:00]} 23. Bxe4 {[%emt 0:00:00]} Nxe4 {[%emt 0:00:05]} 24. f3 {[%emt 0:00:00]} Nc5 {[%emt 0:00:44]} 25. Rd1 {[%emt 0:00:00]} Re8 {[%emt 0:04:05]} 26. N3g4 {[%emt 0:00:00]} Kg7 {[%emt 0:03:08]} 27. f4 {[%emt 0:00:00]} f6 {[%emt 0:05:43]} 28. Nf3 {[%emt 0:00:00]} Nd3 {[%emt 0:00:47]} 29. Rd2 {[%emt 0:00:00]} Na4 {[%emt 0:05:36]} 30. b3 {[%emt 0:01:16]} Nxc3 {[%emt 0:00:15]} 31. bxc4 {[%emt 0:00:07]} bxc4 {[%emt 0:00:02]} 32. Rc2 {[%emt 0:00:42]} Nxf4 {[%emt 0:00:47]} 33. g3 {[%emt 0:02:01]} Nfd5 {[%emt 0:01:24]} 34. Rb2 {[%emt 0:00:57]} Nb5 {[%emt 0:12:26]} 35. Rd2 {[%emt 0:00:31]} Nb6 {[%emt 0:02:35]} 36. a4 {[%emt 0:00:35]} c3 {[%emt 0:01:58]} 37. Rd1 {[%emt 0:00:01]} c2 {[%emt 0:00:55]} 38. Rc1 {[%emt 0:00:01]} Na3 {[%emt 0:00:46]} 39. Ne1 {[%emt 0:00:39]} Rc8 {[%emt 0:06:23]} 40. Ne3 {[%emt 0:00:31]} Nxa4 {[%emt 0:01:59]} 41. N1xc2 {[%emt 0:00:49]} Nxc2 {[%emt 0:00:38]} 42. Nxc2 {[%emt 0:04:50]} Nb2 {[%emt 0:01:14]} 43. Kf1 {[%emt 0:00:00]} Nd3 {[%emt 0:01:23]} 44. Rd1 {[%emt 0:00:00]} Rxc2 {[%emt 0:00:05]} 45. Rxd3 {[%emt 0:00:00]} Rxh2 {[%emt 0:00:05]} 46. Ra3 {[%emt 0:00:00]} Kh6 {[%emt 0:00:38]} 47. Rxa6 {[%emt 0:00:00]} Kg5 {[%emt 0:00:09]} 48. Ra4 {[%emt 0:00:00]} f5 {[%emt 0:02:04]} 49. Kg1 {[%emt 0:00:00]} Rb2 {[%emt 0:00:13]} 50. Rc4 {[%emt 0:00:00]} h5 {[%emt 0:00:17]} 51. Ra4 {[%emt 0:00:00]} Re2 {[%emt 0:00:25]} 52. Kf1 {[%emt 0:00:00]} Re4 {[%emt 0:00:07]} 53. Ra2 {[%emt 0:00:00]} h4 {[%emt 0:00:31]} 54. gxh4+ {[%emt 0:00:00]} Kxh4 {[%emt 0:01:02]} 55. Kg2 {[%emt 0:00:00]} Kg4 {[%emt 0:00:09]} 56. Kf2 {[%emt 0:00:00]} g5 {[%emt 0:00:18]} 57. Ra3 {[%emt 0:00:20]} f4 {[%emt 0:00:29]} 58. Rb3 {[%emt 0:00:13]} Ra4 {[%emt 0:00:37]} 59. Rb2 {[%emt 0:00:22]} f3 {[%emt 0:02:35]} 60. Kg1 {[%emt 0:00:44]} Kf4 {[%emt 0:00:06]} 61. Kf2 {[%emt 0:00:49]} g4 {[%emt 0:00:56]} 62. Rb1 {[%emt 0:00:35]} Ra2+ {[%emt 0:01:51]} 63. Kg1 {[%emt 0:00:34]} Kg3 {[%emt 0:00:23]} 64. Rc1 {[%emt 0:00:45]} Rg2+ {[%emt 0:00:43]} 65. Kf1 {[%emt 0:00:25]} Rh2 {[%emt 0:00:26]} 66. Kg1 {[%emt 0:00:18]} f2+ {[%emt 0:00:56]} 0-1

[Event "Charlotte Fall IM-C 2023"]
[Site "Charlotte"]
[Date "2023.11.21"]
[Round "8.2"]
[White "Guo, Ethan"]
[Black "Martin Del Campo Cardenas, Roberto Abel"]
[Result "1-0"]
[ECO "B33"]
[WhiteElo "2026"]
[BlackElo "2212"]
[Annotator "RC"]
[PlyCount "69"]
[EventDate "2023.11.17"]
[EventType "tourn"]
[EventCountry "USA"]
[SourceTitle "playchess.com"]
[Source "ChessBase"]
[SourceQuality "1"]
[TimeControl "5400+30"]

1. e4 {[%emt 0:00:00]} c5 {[%emt 0:00:29]} 2. Nf3 {[%emt 0:00:07]} Nc6 {[%emt 0:00:56]} 3. d4 {[%emt 0:00:06]} cxd4 {[%emt 0:01:09]} 4. Nxd4 {[%emt 0:00:07]} Qb6 {[%emt 0:00:05]} 5. Nb3 {[%emt 1:32:40]} Nf6 {[%emt 0:00:09]} 6. Nc3 {[%emt 0:00:00]} e6 {[%emt 0:00:16]} 7. Qe2 {[%emt 0:00:00]} d6 {[%emt 0:00:50]} 8. Be3 {[%emt 0:00:00]} Qc7 {[%emt 0:00:11]} 9. O-O-O {[%emt 0:00:00]} a6 {[%emt 0:00:30]} 10. g4 {[%emt 0:00:00]} b5 {[%emt 0:01:11]} 11. g5 {[%emt 0:00:00]} Nd7 {[%emt 0:00:53]} 12. f4 {[%emt 0:00:00]} Nb6 {[%emt 0:08:05]} 13. Qf2 {[%emt 0:00:00]} Rb8 {[%emt 0:01:42]} 14. f5 {[%emt 0:00:00]} Ne5 {[%emt 0:04:32]} 15. Bd4 {[%emt 0:00:00]} b4 {[%emt 0:08:59]} 16. Ne2 {[%emt 0:00:00]} Nec4 {[%emt 0:00:47]} 17. Nf4 {[%emt 0:00:00]} e5 {[%emt 0:11:11]} 18. Bxc4 {[%emt 0:00:00]} Nxc4 {[%emt 0:11:53]} 19. Nd5 {[%emt 0:00:00]} Qd8 {[%emt 0:06:52]} 20. Qe2 {[%emt 0:00:00]} Na5 {[%emt 0:05:30]} 21. Be3 {[%emt 0:00:00]} Nxb3+ {[%emt 0:00:08]} 22. axb3 {[%emt 0:00:00]} Be7 {[%emt 0:03:35]} 23. Rhg1 {[%emt 0:00:00]} Qa5 {[%emt 0:03:31]} 24. Kb1 {[%emt 0:00:00]} Bd8 {[%emt 0:00:23]} 25. Qh5 {[%emt 0:00:00]} g6 {[%emt 0:03:22]} 26. Qh6 {[%emt 0:00:00]} Rb5 {[%emt 0:02:22]} 27. fxg6 {[%emt 0:00:00]} fxg6 {[%emt 0:00:29]} 28. Qg7 {[%emt 0:00:00]} Rf8 {[%emt 0:00:20]} 29. Rgf1 {[%emt 0:00:00]} Bf5 {[%emt 0:00:51]} 30. Bb6 {[%emt 0:00:00]} Rxb6 {[%emt 0:00:32]} 31. Nxb6 {[%emt 0:00:00]} Rf7 {[%emt 0:00:21]} 32. Qg8+ {[%emt 0:00:00]} Rf8 {[%emt 0:00:05]} 33. Qxh7 {[%emt 0:00:00]} Rf7 {[%emt 0:00:33]} 34. Qg8+ {[%emt 0:00:00]} Rf8 {[%emt 0:00:02]} 35. Qc4 {[%emt 0:00:00]} 1-0

[Event "Charlotte Fall IM-C 2023"]
[Site "Charlotte"]
[Date "2023.11.21"]
[Round "8.3"]
[White "Wang, Isaac"]
[Black "Bhagat Kush"]
[Result "1-0"]
[ECO "E73"]
[WhiteElo "2377"]
[BlackElo "2209"]
[Annotator "RC"]
[PlyCount "55"]
[EventDate "2023.11.17"]
[EventType "tourn"]
[EventCountry "USA"]
[SourceTitle "playchess.com"]
[Source "ChessBase"]
[SourceQuality "1"]
[TimeControl "5400+30"]

1. d4 {[%emt 0:01:09]} Nf6 {[%emt 0:07:13]} 2. c4 {[%emt 0:00:03]} g6 {[%emt 0:00:06]} 3. Nc3 {[%emt 0:00:12]} Bg7 {[%emt 0:00:05]} 4. e4 {[%emt 0:00:05]} d6 {[%emt 0:00:11]} 5. Be2 {[%emt 0:00:05]} O-O {[%emt 0:00:06]} 6. Be3 {[%emt 0:00:04]} c5 {[%emt 0:00:18]} 7. d5 {[%emt 0:00:09]} e6 {[%emt 0:00:05]} 8. Nf3 {[%emt 0:00:16]} exd5 {[%emt 0:00:04]} 9. cxd5 {[%emt 0:00:05]} b5 {[%emt 0:00:17]} 10. e5 {[%emt 0:00:41]} dxe5 {[%emt 0:00:08]} 11. Bxc5 {[%emt 0:00:13]} Re8 {[%emt 0:00:06]} 12. Bxb5 {[%emt 0:00:39]} e4 {[%emt 0:00:08]} 13. Bxe8 {[%emt 0:02:30]} exf3 {[%emt 0:00:09]} 14. Bxf7+ {[%emt 0:01:45]} Kxf7 {[%emt 0:00:18]} 15. O-O {[%emt 0:01:25]} Qc7 {[%emt 0:24:22]} 16. Rc1 {[%emt 0:05:29]} Na6 {[%emt 0:15:49]} 17. Ba3 {[%emt 0:23:57]} fxg2 {[%emt 0:13:46]} 18. Re1 {[%emt 0:00:21]} Qf4 {[%emt 0:00:08]} 19. d6 {[%emt 0:13:40]} Be6 {[%emt 0:01:32]} 20. Rxe6 {[%emt 0:07:05]} Ng4 {[%emt 0:04:24]} 21. Re7+ {[%emt 0:01:24]} Kg8 {[%emt 0:01:00]} 22. Qd5+ {[%emt 0:01:46]} Kh8 {[%emt 0:00:11]} 23. Qxa8+ {[%emt 0:00:29]} Bf8 {[%emt 0:00:05]} 24. Qxf8+ {[%emt 0:01:54]} Qxf8 {[%emt 0:00:02]} 25. Ne4 {[%emt 0:00:43]} Nxh2 {[%emt 0:03:01]} 26. Kxh2 {[%emt 0:00:30]} Qf4+ {[%emt 0:00:28]} 27. Kxg2 {[%emt 0:00:12]} Qxc1 {[%emt 0:00:09]} 28. d7 {[%emt 0:00:15]} 1-0

[Event "Charlotte Fall IM-C 2023"]
[Site "Charlotte"]
[Date "2023.11.21"]
[Round "8.4"]
[White "Fierro Baquero, Martha L."]
[Black "Song, Ethan"]
[Result "1-0"]
[ECO "A21"]
[WhiteElo "2306"]
[BlackElo "2176"]
[Annotator "RC"]
[PlyCount "81"]
[EventDate "2023.11.17"]
[EventType "tourn"]
[EventCountry "USA"]
[SourceTitle "playchess.com"]
[Source "ChessBase"]
[SourceQuality "1"]
[TimeControl "5400+30"]

1. g3 {[%emt 0:03:44]} g6 {[%emt 0:00:35]} 2. Bg2 {[%emt 0:00:08]} Bg7 {[%emt 0:00:04]} 3. c4 {[%emt 0:00:06]} e5 {[%emt 0:00:10]} 4. Nc3 {[%emt 0:00:07]} Ne7 {[%emt 0:00:06]} 5. h4 {[%emt 0:01:09]} h6 {[%emt 0:05:59]} 6. Nf3 {[%emt 0:04:59]} d6 {[%emt 0:00:43]} 7. d4 {[%emt 0:05:14]} Nd7 {[%emt 0:03:53]} 8. O-O {[%emt 0:05:28]} O-O {[%emt 0:01:14]} 9. e3 {[%emt 0:00:02]} c6 {[%emt 0:02:33]} 10. b3 {[%emt 0:06:33]} Re8 {[%emt 0:06:08]} 11. Ba3 {[%emt 0:09:08]} Nf5 {[%emt 0:06:42]} 12. dxe5 {[%emt 0:12:31]} Qa5 {[%emt 0:07:19]} 13. Bb2 {[%emt 0:02:03]} Nxe5 {[%emt 0:03:50]} 14. Qc2 {[%emt 0:03:02]} Be6 {[%emt 0:05:13]} 15. Rfd1 {[%emt 0:04:50]} Rad8 {[%emt 0:03:50]} 16. Rd2 {[%emt 0:00:38]} d5 {[%emt 0:18:22]} 17. Nxe5 {[%emt 0:05:43]} Bxe5 {[%emt 0:00:29]} 18. cxd5 {[%emt 0:00:40]} cxd5 {[%emt 0:00:31]} 19. Ne2 {[%emt 0:00:04]} Rc8 {[%emt 0:03:55]} 20. Qd1 {[%emt 0:00:14]} Bxb2 {[%emt 0:01:12]} 21. Rxb2 {[%emt 0:00:05]} Nd6 {[%emt 0:03:20]} 22. Nf4 {[%emt 0:07:42]} Ne4 {[%emt 0:01:38]} 23. b4 {[%emt 0:04:29]} Qb5 {[%emt 0:01:16]} 24. h5 {[%emt 0:00:41]} g5 {[%emt 0:01:20]} 25. Nxe6 {[%emt 0:00:05]} Rxe6 {[%emt 0:00:13]} 26. Bh3 {[%emt 0:24:05]} Rc4 {[%emt 0:01:52]} 27. Bxe6 {[%emt 0:00:00]} fxe6 {[%emt 0:00:09]} 28. Rc1 {[%emt 0:00:00]} Nc3 {[%emt 0:00:44]} 29. Qe1 {[%emt 0:00:00]} Ne2+ {[%emt 0:01:38]} 30. Rxe2 {[%emt 0:00:00]} Rxc1 {[%emt 0:00:03]} 31. Qxc1 {[%emt 0:00:00]} Qxe2 {[%emt 0:00:03]} 32. Qc8+ {[%emt 0:00:00]} Kf7 {[%emt 0:00:54]} 33. Qxb7+ {[%emt 0:00:00]} Kg8 {[%emt 0:00:55]} 34. Qa8+ {[%emt 0:00:00]} Kf7 {[%emt 0:00:17]} 35. Qxa7+ {[%emt 0:00:00]} Kf6 {[%emt 0:00:15]} 36. Qd4+ {[%emt 0:00:00]} e5 {[%emt 0:00:55]} 37. Qxd5 {[%emt 0:00:00]} Qe1+ {[%emt 0:00:10]} 38. Kg2 {[%emt 0:00:00]} Qxb4 {[%emt 0:00:05]} 39. Qc6+ {[%emt 0:00:00]} Kf5 {[%emt 0:00:11]} 40. Qg6+ {[%emt 0:00:00]} Kg4 {[%emt 0:00:05]} 41. f3# {[%emt 0:00:00]} 1-0

[Event "Charlotte Fall IM-C 2023"]
[Site "Charlotte"]
[Date "2023.11.21"]
[Round "8.5"]
[White "Graif, William"]
[Black "Nandhakumar, Vaseegaran"]
[Result "1-0"]
[ECO "B06"]
[WhiteElo "2289"]
[BlackElo "2177"]
[Annotator "RC"]
[PlyCount "45"]
[EventDate "2023.11.17"]
[EventType "tourn"]
[EventCountry "USA"]
[SourceTitle "playchess.com"]
[Source "ChessBase"]
[SourceQuality "1"]
[TimeControl "5400+30"]

1. e4 {[%emt 0:02:36]} c5 {[%emt 0:00:24]} 2. Nc3 {[%emt 0:00:18]} g6 {[%emt 0:00:21]} 3. d4 {[%emt 0:00:07]} Bg7 {[%emt 0:00:10]} 4. dxc5 {[%emt 0:00:15]} Bxc3+ {[%emt 0:00:40]} 5. bxc3 {[%emt 0:00:02]} Qa5 {[%emt 0:00:02]} 6. Qd4 {[%emt 0:00:52]} Nf6 {[%emt 0:00:18]} 7. Qb4 {[%emt 0:00:10]} Qc7 {[%emt 0:00:09]} 8. f3 {[%emt 0:00:59]} Nc6 {[%emt 0:01:27]} 9. Qa3 {[%emt 0:01:49]} O-O {[%emt 0:00:46]} 10. Ne2 {[%emt 0:09:04]} b6 {[%emt 0:02:04]} 11. Bf4 {[%emt 0:01:18]} Qb7 {[%emt 0:03:08]} 12. Rb1 {[%emt 0:03:02]} Qa6 {[%emt 0:00:25]} 13. Qxa6 {[%emt 0:14:45]} Bxa6 {[%emt 0:00:23]} 14. cxb6 {[%emt 0:08:15]} axb6 {[%emt 0:00:13]} 15. Rxb6 {[%emt 0:05:03]} Bxe2 {[%emt 0:01:08]} 16. Bxe2 {[%emt 0:01:51]} Rxa2 {[%emt 0:00:38]} 17. Kd2 {[%emt 0:00:29]} Rc8 {[%emt 0:01:31]} 18. Rhb1 {[%emt 0:02:39]} d5 {[%emt 0:03:28]} 19. Ba6 {[%emt 0:03:13]} Ra8 {[%emt 0:06:00]} 20. Bb7 {[%emt 0:03:54]} Na5 {[%emt 0:00:06]} 21. Bxa8 {[%emt 0:02:04]} Nc4+ {[%emt 0:00:05]} 22. Kc1 {[%emt 0:01:05]} Nxb6 {[%emt 0:00:01]} 23. Bc6 {[%emt 0:00:22]} 1-0